[Event "*** Titled Tuesday Blitz"]
[Site "Chess.com"]
[Date "2019.06.04"]
[Round "3"]
[White "Indianlad"]
[Black "Zq1"]
[Result "1-0"]
[WhiteElo "2876"]
[BlackElo "2503"]
[TimeControl "180+2"]
[EndTime "13:37:48 PDT"]
[Termination "Indianlad won by resignation"]

1. Nf3 {[%clk 0:03:01.9]} 1... d5 {[%clk 0:03:00.2]} 2. g3 {[%clk 0:03:03]} 2...
Nf6 {[%clk 0:03:00.9]} 3. Bg2 {[%clk 0:03:04]} 3... c6 {[%clk 0:03:02.2]} 4. O-O
{[%clk 0:03:05]} 4... Bf5 {[%clk 0:03:03.1]} 5. c4 {[%clk 0:03:06.2]} 5... e6
{[%clk 0:03:02.2]} 6. d3 {[%clk 0:03:07.4]} 6... dxc4 {[%clk 0:02:59.9]} 7. dxc4
{[%clk 0:03:07.6]} 7... Nbd7 {[%clk 0:02:59.3]} 8. Nc3 {[%clk 0:03:08.1]} 8...
h6 {[%clk 0:02:59.2]} 9. Be3 {[%clk 0:02:50.3]} 9... Bc5 {[%clk 0:02:58.7]} 10.
Bxc5 {[%clk 0:02:45.5]} 10... Nxc5 {[%clk 0:02:59.1]} 11. Nd4 {[%clk 0:02:46.9]}
11... Bh7 {[%clk 0:02:45.5]} 12. Nxc6 {[%clk 0:02:44.7]} 12... bxc6 {[%clk
0:02:44.6]} 13. Bxc6+ {[%clk 0:02:46]} 13... Nfd7 {[%clk 0:02:21.4]} 14. Qd6
{[%clk 0:02:43.6]} 14... Qe7 {[%clk 0:02:10.6]} 15. Qxe7+ {[%clk 0:02:42.2]}
15... Kxe7 {[%clk 0:02:11.5]} 16. Bxa8 {[%clk 0:02:41.9]} 16... Rxa8 {[%clk
0:02:13.1]} 17. b4 {[%clk 0:02:42.6]} 17... Ne4 {[%clk 0:02:10.7]} 18. Nxe4
{[%clk 0:02:43.1]} 18... Bxe4 {[%clk 0:02:11.7]} 19. f3 {[%clk 0:02:44.6]} 19...
Bc2 {[%clk 0:02:03.9]} 20. c5 {[%clk 0:02:41.6]} 20... Ba4 {[%clk 0:02:02.1]}
21. Rfc1 {[%clk 0:02:31.4]} 21... Ne5 {[%clk 0:02:01.8]} 22. a3 {[%clk
0:02:25.3]} 22... a6 {[%clk 0:01:58.5]} 23. f4 {[%clk 0:02:23]} 23... Nc6 {[%clk
0:01:56.6]} 24. Kf2 {[%clk 0:02:23.3]} 24... Rd8 {[%clk 0:01:55.9]} 25. Ra2
{[%clk 0:02:24.4]} 25... f5 {[%clk 0:01:49.8]} 26. Rc3 {[%clk 0:02:23.1]} 26...
Rd1 {[%clk 0:01:30]} 27. Rd3 {[%clk 0:02:22.8]} 27... Rh1 {[%clk 0:01:29.5]} 28.
Kg2 {[%clk 0:02:21.2]} 28... Rc1 {[%clk 0:01:27.4]} 29. Rad2 {[%clk 0:02:21.9]}
29... g5 {[%clk 0:01:22.2]} 30. Rd7+ {[%clk 0:02:13.5]} 30... Kf6 {[%clk
0:01:22.3]} 31. Rh7 {[%clk 0:02:15]} 31... Kg6 {[%clk 0:01:07]} 32. Rc7 {[%clk
0:02:05.9]} 32... Kf6 {[%clk 0:00:39.5]} 33. h4 {[%clk 0:01:17.3]} 33... gxf4
{[%clk 0:00:38.2]} 34. gxf4 {[%clk 0:01:17.6]} 34... Rc4 {[%clk 0:00:38.9]} 35.
e3 {[%clk 0:01:14.9]} 35... Ne7 {[%clk 0:00:34.9]} 36. Rd8 {[%clk 0:01:11]}
36... Nd5 {[%clk 0:00:32.8]} 37. Ra7 {[%clk 0:00:44.5]} 37... Nxe3+ {[%clk
0:00:32.5]} 38. Kf3 {[%clk 0:00:45.6]} 38... Nd5 {[%clk 0:00:33.3]} 39. Rxa6
{[%clk 0:00:41.6]} 39... Rxf4+ {[%clk 0:00:34.2]} 40. Kg2 {[%clk 0:00:40.3]}
40... Bb3 {[%clk 0:00:24.5]} 41. c6 {[%clk 0:00:38.2]} 41... Ne3+ {[%clk
0:00:19.3]} 42. Kg3 {[%clk 0:00:38.5]} 42... Rc4 {[%clk 0:00:16.7]} 43. b5
{[%clk 0:00:39.6]} 43... f4+ {[%clk 0:00:15.9]} 44. Kf2 {[%clk 0:00:40.6]} 44...
Rc2+ {[%clk 0:00:15.2]} 45. Kf3 {[%clk 0:00:41.8]} 45... Ke5 {[%clk 0:00:16.2]}
46. b6 {[%clk 0:00:36.4]} 46... Bd5+ {[%clk 0:00:13.4]} 47. Rxd5+ {[%clk
0:00:35.9]} 47... Nxd5 {[%clk 0:00:14.2]} 48. b7 {[%clk 0:00:35]} 48... Rb2
{[%clk 0:00:14.5]} 49. Ra8 {[%clk 0:00:35.1]} 49... Rb3+ {[%clk 0:00:14.2]} 50.
Kf2 {[%clk 0:00:36.2]} 50... Rb2+ {[%clk 0:00:12.9]} 51. Ke1 {[%clk 0:00:37.3]}
51... f3 {[%clk 0:00:12.9]} 52. b8=Q+ {[%clk 0:00:37]} 52... Rxb8 {[%clk
0:00:10]} 53. Rxb8 {[%clk 0:00:38.9]} 53... Ke4 {[%clk 0:00:11.6]} 54. Kf2
{[%clk 0:00:36.8]} 54... e5 {[%clk 0:00:07.7]} 55. Rf8 {[%clk 0:00:37.2]} 1-0

[Event "*** Titled Tuesday Blitz"]
[Site "Chess.com"]
[Date "2019.06.04"]
[Round "3"]
[White "Gentlejimmy7"]
[Black "ChessWarrior7197"]
[Result "1-0"]
[WhiteElo "2518"]
[BlackElo "2839"]
[TimeControl "180+2"]
[EndTime "13:37:58 PDT"]
[Termination "Gentlejimmy7 won by resignation"]

1. d4 {[%clk 0:03:01.9]} 1... Nf6 {[%clk 0:02:57.9]} 2. Nf3 {[%clk 0:03:01.5]}
2... c5 {[%clk 0:02:56.3]} 3. dxc5 {[%clk 0:02:57]} 3... e6 {[%clk 0:02:55.8]}
4. g3 {[%clk 0:02:56.8]} 4... Bxc5 {[%clk 0:02:55.7]} 5. Bg2 {[%clk 0:02:58.4]}
5... O-O {[%clk 0:02:56.8]} 6. O-O {[%clk 0:02:59.8]} 6... Nc6 {[%clk
0:02:57.5]} 7. c4 {[%clk 0:03:01]} 7... d5 {[%clk 0:02:44.4]} 8. cxd5 {[%clk
0:02:56.5]} 8... Nxd5 {[%clk 0:02:42.5]} 9. a3 {[%clk 0:02:55.8]} 9... Qf6
{[%clk 0:02:38]} 10. Qc2 {[%clk 0:02:45.1]} 10... Bb6 {[%clk 0:02:30.4]} 11. Bg5
{[%clk 0:02:43.8]} 11... Qg6 {[%clk 0:02:29.3]} 12. Qxg6 {[%clk 0:02:43.9]}
12... hxg6 {[%clk 0:02:29.2]} 13. Nc3 {[%clk 0:02:37.1]} 13... Nxc3 {[%clk
0:02:25.3]} 14. bxc3 {[%clk 0:02:37.4]} 14... e5 {[%clk 0:02:22.2]} 15. Nd2
{[%clk 0:02:21.7]} 15... f6 {[%clk 0:02:16.4]} 16. Bd5+ {[%clk 0:02:16.7]} 16...
Kh7 {[%clk 0:02:16]} 17. Be3 {[%clk 0:02:18.2]} 17... Bxe3 {[%clk 0:02:16.4]}
18. fxe3 {[%clk 0:02:20.1]} 18... Bh3 {[%clk 0:02:12.9]} 19. Rfb1 {[%clk
0:02:16.6]} 19... Rab8 {[%clk 0:02:13.4]} 20. Kf2 {[%clk 0:02:07.6]} 20... Na5
{[%clk 0:02:09]} 21. Nb3 {[%clk 0:02:03.1]} 21... Nxb3 {[%clk 0:02:03.4]} 22.
Rxb3 {[%clk 0:02:03.9]} 22... b6 {[%clk 0:02:02.7]} 23. a4 {[%clk 0:02:05]}
23... Rfc8 {[%clk 0:01:52.4]} 24. a5 {[%clk 0:01:56.5]} 24... b5 {[%clk
0:01:47.7]} 25. a6 {[%clk 0:01:43.4]} 25... Bd7 {[%clk 0:01:44.7]} 26. c4 {[%clk
0:01:27.6]} 26... bxc4 {[%clk 0:01:25.5]} 27. Rb7 {[%clk 0:01:25.2]} 27... c3
{[%clk 0:01:05.4]} 28. Rxd7 {[%clk 0:01:22.7]} 28... c2 {[%clk 0:01:06.3]} 29.
Rb7 {[%clk 0:01:19.3]} 29... Ra8 {[%clk 0:00:40.9]} 30. Rc1 {[%clk 0:01:15.3]}
30... Rc5 {[%clk 0:00:38.3]} 31. e4 {[%clk 0:01:15.6]} 31... f5 {[%clk
0:00:37.9]} 32. Re7 {[%clk 0:01:08.7]} 32... Rf8 {[%clk 0:00:37.4]} 33. Ke3
{[%clk 0:01:05.9]} 33... Rb8 {[%clk 0:00:33.9]} 34. Rb7 {[%clk 0:00:59.7]} 34...
Rd8 {[%clk 0:00:14.3]} 35. Rxa7 {[%clk 0:00:57.4]} 35... Rc3+ {[%clk 0:00:13.9]}
36. Kd2 {[%clk 0:00:53]} 36... Ra3 {[%clk 0:00:14.9]} 37. Kxc2 {[%clk
0:00:49.7]} 37... fxe4 {[%clk 0:00:12.5]} 38. Bxe4 {[%clk 0:00:49.2]} 38... Ra2+
{[%clk 0:00:13.7]} 39. Kb3 {[%clk 0:00:46.2]} 39... Rxe2 {[%clk 0:00:14.5]} 40.
Rc4 {[%clk 0:00:45.9]} 40... Rdd2 {[%clk 0:00:11.4]} 41. Bc2 {[%clk 0:00:40.7]}
41... Rd6 {[%clk 0:00:06.9]} 42. Rcc7 {[%clk 0:00:36.1]} 42... Rb6+ {[%clk
0:00:07.4]} 43. Kc3 {[%clk 0:00:33.4]} 43... Kh6 {[%clk 0:00:07.7]} 44. Ra8
{[%clk 0:00:24.9]} 44... e4 {[%clk 0:00:07.7]} 45. a7 {[%clk 0:00:25.6]} 45...
Ra6 {[%clk 0:00:08.3]} 46. Re8 {[%clk 0:00:24.2]} 46... Kg5 {[%clk 0:00:10.2]}
47. a8=Q {[%clk 0:00:24.8]} 47... Rxa8 {[%clk 0:00:11.6]} 48. Rxa8 {[%clk
0:00:26]} 48... Rxh2 {[%clk 0:00:12.5]} 49. Re8 {[%clk 0:00:27.1]} 49... Rg2
{[%clk 0:00:13.1]} 50. Rxg7 {[%clk 0:00:24.7]} 50... Rxg3+ {[%clk 0:00:14.1]}
51. Kd4 {[%clk 0:00:25.3]} 51... Kh6 {[%clk 0:00:15.3]} 52. Rge7 {[%clk
0:00:25.7]} 52... Rg4 {[%clk 0:00:14.3]} 53. Bxe4 {[%clk 0:00:26.3]} 53... Rg1
{[%clk 0:00:12.7]} 54. Rg8 {[%clk 0:00:22.9]} 1-0

[Event "*** Titled Tuesday Blitz"]
[Site "Chess.com"]
[Date "2019.06.04"]
[Round "3"]
[White "dopolian"]
[Black "AsaHoffmann"]
[Result "1-0"]
[WhiteElo "2262"]
[BlackElo "2164"]
[TimeControl "180+2"]
[EndTime "13:38:00 PDT"]
[Termination "dopolian won by resignation"]

1. e4 {[%clk 0:03:01.9]} 1... d6 {[%clk 0:02:02.1]} 2. d4 {[%clk 0:03:00.9]}
2... Nf6 {[%clk 0:01:59.7]} 3. Nc3 {[%clk 0:03:01.6]} 3... c6 {[%clk 0:01:59.5]}
4. f4 {[%clk 0:03:02.1]} 4... Qa5 {[%clk 0:01:58.5]} 5. Bd3 {[%clk 0:03:01.4]}
5... e5 {[%clk 0:01:58]} 6. Nf3 {[%clk 0:03:00.7]} 6... exd4 {[%clk 0:01:56.4]}
7. Nxd4 {[%clk 0:03:02.6]} 7... Qb6 {[%clk 0:01:55.6]} 8. Nb3 {[%clk 0:03:00]}
8... a5 {[%clk 0:01:54.6]} 9. a4 {[%clk 0:02:42.5]} 9... Na6 {[%clk 0:01:53.5]}
10. h3 {[%clk 0:02:39.1]} 10... Nb4 {[%clk 0:01:50.2]} 11. Qe2 {[%clk
0:02:30.9]} 11... Be6 {[%clk 0:01:45.9]} 12. Be3 {[%clk 0:02:25.4]} 12... Nxd3+
{[%clk 0:01:35.8]} 13. Qxd3 {[%clk 0:02:24.7]} 13... Qa6 {[%clk 0:01:34.8]} 14.
Qxa6 {[%clk 0:02:02.8]} 14... Rxa6 {[%clk 0:01:34.4]} 15. Nd4 {[%clk 0:02:04.5]}
15... Be7 {[%clk 0:01:30.2]} 16. O-O {[%clk 0:01:49.8]} 16... O-O {[%clk
0:01:28.1]} 17. Nxe6 {[%clk 0:01:48.6]} 17... fxe6 {[%clk 0:01:25.5]} 18. Rad1
{[%clk 0:01:42.9]} 18... d5 {[%clk 0:01:25.5]} 19. Rfe1 {[%clk 0:01:23.6]} 19...
Bb4 {[%clk 0:01:22.8]} 20. e5 {[%clk 0:01:08.7]} 20... Bxc3 {[%clk 0:01:20.9]}
21. bxc3 {[%clk 0:01:08.7]} 21... Ne4 {[%clk 0:01:20.2]} 22. c4 {[%clk
0:01:07.4]} 22... Rc8 {[%clk 0:01:12.3]} 23. c5 {[%clk 0:00:54.6]} 23... Raa8
{[%clk 0:01:07.6]} 24. Rd3 {[%clk 0:00:48.5]} 24... Rc7 {[%clk 0:01:02.9]} 25.
Rb1 {[%clk 0:00:47.7]} 25... Ra7 {[%clk 0:00:57.3]} 26. Rdb3 {[%clk 0:00:44.9]}
26... Rd7 {[%clk 0:00:55.9]} 27. c3 {[%clk 0:00:44.4]} 27... h6 {[%clk
0:00:50.3]} 28. g4 {[%clk 0:00:41.4]} 28... g6 {[%clk 0:00:49.4]} 29. Rf1 {[%clk
0:00:34.7]} 29... Ra8 {[%clk 0:00:46.3]} 30. f5 {[%clk 0:00:31.5]} 30... gxf5
{[%clk 0:00:43.5]} 31. gxf5 {[%clk 0:00:33.4]} 31... exf5 {[%clk 0:00:42.4]} 32.
Rxf5 {[%clk 0:00:33.4]} 32... Kh7 {[%clk 0:00:41.7]} 33. e6 {[%clk 0:00:29.4]}
33... Rg7+ {[%clk 0:00:39.8]} 34. Kh2 {[%clk 0:00:26.1]} 34... Rag8 {[%clk
0:00:39.5]} 35. Rf7 {[%clk 0:00:24.8]} 35... Rxf7 {[%clk 0:00:36.7]} 36. exf7
{[%clk 0:00:26.7]} 36... Rf8 {[%clk 0:00:36]} 37. Rxb7 {[%clk 0:00:26.6]} 37...
Nxc3 {[%clk 0:00:35]} 38. Bf4 {[%clk 0:00:22.6]} 38... Kg6 {[%clk 0:00:33.1]}
39. Rc7 {[%clk 0:00:18.4]} 39... Rxf7 {[%clk 0:00:32.1]} 40. Rxc6+ {[%clk
0:00:20]} 40... Kf5 {[%clk 0:00:31.5]} 41. Bc7 {[%clk 0:00:19.7]} 41... d4
{[%clk 0:00:29.7]} 42. Bxa5 {[%clk 0:00:19.5]} 42... Nxa4 {[%clk 0:00:29.1]} 43.
Rd6 {[%clk 0:00:18.6]} 43... Ke5 {[%clk 0:00:27.1]} 44. Rxh6 {[%clk 0:00:15.7]}
44... Nxc5 {[%clk 0:00:25.4]} 45. Rh5+ {[%clk 0:00:16.9]} 45... Rf5 {[%clk
0:00:24.5]} 46. Rh8 {[%clk 0:00:15]} 46... Ke4 {[%clk 0:00:22]} 47. Kg3 {[%clk
0:00:13]} 47... Rf3+ {[%clk 0:00:19.8]} 48. Kg4 {[%clk 0:00:13.4]} 48... Ra3
{[%clk 0:00:19.7]} 49. Bb4 {[%clk 0:00:12.9]} 49... d3 {[%clk 0:00:17]} 50. Re8+
{[%clk 0:00:09]} 50... Kd4 {[%clk 0:00:14.2]} 51. Bxa3 {[%clk 0:00:07.6]} 51...
d2 {[%clk 0:00:13.5]} 52. Bxc5+ {[%clk 0:00:08.2]} 52... Kxc5 {[%clk 0:00:12.5]}
53. Rd8 {[%clk 0:00:09.3]} 1-0

[Event "*** Titled Tuesday Blitz"]
[Site "Chess.com"]
[Date "2019.06.04"]
[Round "3"]
[White "levallem"]
[Black "PawnEatingZombie"]
[Result "1-0"]
[WhiteElo "2271"]
[BlackElo "2147"]
[TimeControl "180+2"]
[EndTime "13:38:02 PDT"]
[Termination "levallem won by checkmate"]

1. d4 {[%clk 0:03:01.9]} 1... d5 {[%clk 0:03:00.7]} 2. c4 {[%clk 0:03:03]} 2...
e6 {[%clk 0:03:01.9]} 3. Nc3 {[%clk 0:03:04]} 3... Bb4 {[%clk 0:03:03.5]} 4. e3
{[%clk 0:03:03]} 4... Nf6 {[%clk 0:03:03.5]} 5. Nf3 {[%clk 0:03:03.2]} 5... O-O
{[%clk 0:03:00.2]} 6. Bd2 {[%clk 0:03:04.2]} 6... b6 {[%clk 0:02:59.6]} 7. cxd5
{[%clk 0:03:03.5]} 7... exd5 {[%clk 0:03:00.3]} 8. Rc1 {[%clk 0:03:03.9]} 8...
a6 {[%clk 0:02:55.5]} 9. a3 {[%clk 0:03:03.7]} 9... Bd6 {[%clk 0:02:56.1]} 10.
Bd3 {[%clk 0:03:02.6]} 10... Bb7 {[%clk 0:02:57]} 11. Qc2 {[%clk 0:03:01]} 11...
Re8 {[%clk 0:02:51]} 12. b4 {[%clk 0:03:01]} 12... Nbd7 {[%clk 0:02:49.3]} 13.
O-O {[%clk 0:03:00.8]} 13... Ne4 {[%clk 0:02:43.1]} 14. Be1 {[%clk 0:02:44.6]}
14... Qf6 {[%clk 0:02:40.3]} 15. Ne2 {[%clk 0:02:38.7]} 15... Qh6 {[%clk
0:02:38.8]} 16. Ng3 {[%clk 0:02:36.1]} 16... g6 {[%clk 0:02:36]} 17. Nd2 {[%clk
0:02:21.4]} 17... f5 {[%clk 0:02:31.7]} 18. Nb3 {[%clk 0:01:32.3]} 18... Kh8
{[%clk 0:02:29.9]} 19. Bd2 {[%clk 0:01:22.8]} 19... Re7 {[%clk 0:02:21.6]} 20.
Rce1 {[%clk 0:01:23.3]} 20... Rae8 {[%clk 0:02:20.3]} 21. Re2 {[%clk 0:01:19.5]}
21... Qg7 {[%clk 0:02:11.2]} 22. Rfe1 {[%clk 0:01:13]} 22... h5 {[%clk
0:02:11.3]} 23. Nf1 {[%clk 0:01:09.8]} 23... h4 {[%clk 0:02:11.2]} 24. Bc1
{[%clk 0:01:06.2]} 24... Qf6 {[%clk 0:02:09.8]} 25. f3 {[%clk 0:01:03.3]} 25...
Ng5 {[%clk 0:02:07]} 26. Rf2 {[%clk 0:00:53.2]} 26... f4 {[%clk 0:01:55.2]} 27.
Rfe2 {[%clk 0:00:47.4]} 27... h3 {[%clk 0:01:32.9]} 28. exf4 {[%clk 0:00:35.3]}
28... hxg2 {[%clk 0:01:33.9]} 29. fxg5 {[%clk 0:00:31]} 29... gxf1=Q+ {[%clk
0:01:34.8]} 30. Rxf1 {[%clk 0:00:28.4]} 30... Rxe2 {[%clk 0:01:29.5]} 31. Bxe2
{[%clk 0:00:28.4]} 31... Qe6 {[%clk 0:01:15.6]} 32. Bd3 {[%clk 0:00:27.6]} 32...
Nf8 {[%clk 0:01:12.9]} 33. Qf2 {[%clk 0:00:23.2]} 33... Nh7 {[%clk 0:01:03.4]}
34. Bd2 {[%clk 0:00:22.8]} 34... Bc8 {[%clk 0:00:50.9]} 35. Re1 {[%clk
0:00:22.3]} 35... Qf7 {[%clk 0:00:52.5]} 36. Rxe8+ {[%clk 0:00:22.1]} 36... Qxe8
{[%clk 0:00:54.4]} 37. Qh4 {[%clk 0:00:21]} 37... Qf7 {[%clk 0:00:53.5]} 38. f4
{[%clk 0:00:21]} 38... Bf5 {[%clk 0:00:49.4]} 39. Be2 {[%clk 0:00:21.3]} 39...
a5 {[%clk 0:00:41.7]} 40. bxa5 {[%clk 0:00:20.9]} 40... bxa5 {[%clk 0:00:43.3]}
41. Nxa5 {[%clk 0:00:21.9]} 41... Bxa3 {[%clk 0:00:43.2]} 42. Nc6 {[%clk
0:00:22.8]} 42... Qe6 {[%clk 0:00:38.9]} 43. Ne5 {[%clk 0:00:23.7]} 43... Kg8
{[%clk 0:00:30.4]} 44. Qf2 {[%clk 0:00:22.5]} 44... c5 {[%clk 0:00:27.6]} 45. h4
{[%clk 0:00:23]} 45... c4 {[%clk 0:00:27.9]} 46. Bc3 {[%clk 0:00:24]} 46... Bd6
{[%clk 0:00:26.2]} 47. Bf3 {[%clk 0:00:24.8]} 47... Bxe5 {[%clk 0:00:09.2]} 48.
dxe5 {[%clk 0:00:26.7]} 48... Qf7 {[%clk 0:00:06.5]} 49. Qc5 {[%clk 0:00:26.5]}
49... Be6 {[%clk 0:00:07.3]} 50. Bd2 {[%clk 0:00:25.3]} 50... Kg7 {[%clk
0:00:08.3]} 51. Kf2 {[%clk 0:00:26.2]} 51... Nf8 {[%clk 0:00:09.2]} 52. Kg3
{[%clk 0:00:26.9]} 52... Qf5 {[%clk 0:00:07.7]} 53. Qd4 {[%clk 0:00:26.4]} 53...
Qh3+ {[%clk 0:00:08.4]} 54. Kf2 {[%clk 0:00:26.7]} 54... Qxh4+ {[%clk
0:00:09.7]} 55. Ke3 {[%clk 0:00:28.1]} 55... Qh3 {[%clk 0:00:09.3]} 56. Ke2
{[%clk 0:00:28.1]} 56... Qf5 {[%clk 0:00:09.9]} 57. Bc3 {[%clk 0:00:27.4]} 57...
Bf7 {[%clk 0:00:10]} 58. e6+ {[%clk 0:00:25.2]} 58... Kh7 {[%clk 0:00:09.7]} 59.
Qg7# {[%clk 0:00:26]} 1-0

[Event "*** Titled Tuesday Blitz"]
[Site "Chess.com"]
[Date "2019.06.04"]
[Round "3"]
[White "hellokostya"]
[Black "IMRosen"]
[Result "1-0"]
[WhiteElo "2530"]
[BlackElo "2531"]
[TimeControl "180+2"]
[EndTime "13:38:06 PDT"]
[Termination "hellokostya won by resignation"]

1. d4 {[%clk 0:03:01.9]} 1... Nf6 {[%clk 0:02:57.2]} 2. c4 {[%clk 0:03:02.4]}
2... Nc6 {[%clk 0:02:57.8]} 3. Nf3 {[%clk 0:03:02.4]} 3... e6 {[%clk 0:02:58.1]}
4. Nc3 {[%clk 0:03:01.1]} 4... Bb4 {[%clk 0:02:58.5]} 5. Qc2 {[%clk 0:03:01.8]}
5... d6 {[%clk 0:02:54.2]} 6. Bd2 {[%clk 0:02:59.8]} 6... O-O {[%clk 0:02:54.2]}
7. e3 {[%clk 0:02:57.3]} 7... Qe7 {[%clk 0:02:52.9]} 8. Be2 {[%clk 0:02:52.1]}
8... e5 {[%clk 0:02:50.7]} 9. d5 {[%clk 0:02:37]} 9... Nb8 {[%clk 0:02:44.7]}
10. a3 {[%clk 0:02:32.2]} 10... Bxc3 {[%clk 0:02:45.2]} 11. Bxc3 {[%clk
0:02:33.1]} 11... a5 {[%clk 0:02:46.8]} 12. b3 {[%clk 0:02:30.2]} 12... Nbd7
{[%clk 0:02:37.3]} 13. e4 {[%clk 0:02:26.6]} 13... Nc5 {[%clk 0:02:32.1]} 14.
Nd2 {[%clk 0:02:27.5]} 14... Ng4 {[%clk 0:02:10]} 15. h3 {[%clk 0:02:01.1]}
15... Qh4 {[%clk 0:02:03]} 16. g3 {[%clk 0:01:50.7]} 16... Qh6 {[%clk
0:01:59.5]} 17. Bf3 {[%clk 0:01:12.5]} 17... Nf6 {[%clk 0:01:46.3]} 18. Nf1
{[%clk 0:01:08.3]} 18... a4 {[%clk 0:01:16.2]} 19. b4 {[%clk 0:01:05.6]} 19...
Nb3 {[%clk 0:01:16]} 20. Rd1 {[%clk 0:00:56.1]} 20... Re8 {[%clk 0:01:15.9]} 21.
Ne3 {[%clk 0:00:53.4]} 21... g6 {[%clk 0:01:12.9]} 22. Bg2 {[%clk 0:00:45.5]}
22... Qg7 {[%clk 0:01:12.2]} 23. O-O {[%clk 0:00:46.4]} 23... Qh6 {[%clk
0:01:06.7]} 24. g4 {[%clk 0:00:35.6]} 24... Qf4 {[%clk 0:00:59.7]} 25. Rde1
{[%clk 0:00:30.6]} 25... h5 {[%clk 0:00:59.9]} 26. f3 {[%clk 0:00:26.4]} 26...
Kg7 {[%clk 0:00:54.3]} 27. Qf2 {[%clk 0:00:24.3]} 27... Bd7 {[%clk 0:00:51.6]}
28. c5 {[%clk 0:00:19.9]} 28... Bb5 {[%clk 0:00:47.4]} 29. Qh4 {[%clk
0:00:15.1]} 29... Bxf1 {[%clk 0:00:41.6]} 30. Nxf1 {[%clk 0:00:15.8]} 30... hxg4
{[%clk 0:00:37.3]} 31. hxg4 {[%clk 0:00:16.2]} 31... Rh8 {[%clk 0:00:38.5]} 32.
Qg3 {[%clk 0:00:17.4]} 32... Qg5 {[%clk 0:00:27.2]} 33. Re2 {[%clk 0:00:17.2]}
33... Rh7 {[%clk 0:00:27]} 34. Rf2 {[%clk 0:00:14.6]} 34... Qc1 {[%clk
0:00:25.9]} 35. Bb2 {[%clk 0:00:14]} 35... Qd1 {[%clk 0:00:23.5]} 36. f4 {[%clk
0:00:12.9]} 36... Qxg4 {[%clk 0:00:20.6]} 37. fxe5 {[%clk 0:00:13.1]} 37... Qxg3
{[%clk 0:00:15.4]} 38. exf6+ {[%clk 0:00:13.8]} 38... Kg8 {[%clk 0:00:15.2]} 39.
Nxg3 {[%clk 0:00:15.7]} 39... dxc5 {[%clk 0:00:16.5]} 40. bxc5 {[%clk
0:00:15.7]} 40... Nxc5 {[%clk 0:00:18.4]} 41. e5 {[%clk 0:00:16.8]} 41... Rh4
{[%clk 0:00:17.2]} 42. d6 {[%clk 0:00:14.5]} 42... cxd6 {[%clk 0:00:17.2]} 43.
exd6 {[%clk 0:00:16.4]} 43... Nd3 {[%clk 0:00:18.3]} 44. Rd2 {[%clk 0:00:17.2]}
44... Nxb2 {[%clk 0:00:19.5]} 45. Rxb2 {[%clk 0:00:19.1]} 45... Rd4 {[%clk
0:00:20.4]} 46. Ne4 {[%clk 0:00:19.8]} 46... Rb8 {[%clk 0:00:18.6]} 47. Kf2
{[%clk 0:00:19.4]} 47... b5 {[%clk 0:00:19.3]} 48. Ke3 {[%clk 0:00:20.8]} 48...
Rd1 {[%clk 0:00:19.7]} 49. Bf3 {[%clk 0:00:20.7]} 49... b4 {[%clk 0:00:19.4]}
50. Bxd1 {[%clk 0:00:21.2]} 50... b3 {[%clk 0:00:17]} 51. Nc5 {[%clk 0:00:22]}
51... Rb5 {[%clk 0:00:17.1]} 52. Nxa4 {[%clk 0:00:22.8]} 52... Rd5 {[%clk
0:00:16]} 53. Nc3 {[%clk 0:00:23.3]} 53... Rxd6 {[%clk 0:00:16.8]} 54. Rxb3
{[%clk 0:00:23.9]} 54... Rxf6 {[%clk 0:00:18.3]} 55. a4 {[%clk 0:00:24.7]} 55...
Rf5 {[%clk 0:00:18.6]} 56. Rb5 {[%clk 0:00:24.8]} 56... Rf6 {[%clk 0:00:16.9]}
57. a5 {[%clk 0:00:25.8]} 57... Ra6 {[%clk 0:00:17.8]} 58. Be2 {[%clk
0:00:25.3]} 58... Kg7 {[%clk 0:00:19.1]} 59. Ne4 {[%clk 0:00:25.8]} 59... Ra7
{[%clk 0:00:14.6]} 60. Nc5 {[%clk 0:00:25.6]} 60... f5 {[%clk 0:00:13]} 61. Rb7+
{[%clk 0:00:25.9]} 1-0